[Event "Slovakian-ch Youth 2022"]
[Site "Lubovna"]
[Date "2022.05.22"]
[Round "2.3"]
[White "Gay, Lukas"]
[Black "Hudak, Jan"]
[Result "1-0"]
[ECO "B30"]
[WhiteElo "1480"]
[BlackElo "1688"]
[Annotator "NA COMBH"]
[PlyCount "99"]
[EventDate "2022.05.22"]
[EventCountry "SVK"]
[SourceTitle "playchess.com"]
[Source "ChessBase"]
[SourceQuality "1"]
[TimeControl "40/5400+30:1800+30"]

1. e4 {[%emt 0:00:07]} c5 {[%emt 0:00:07]} 2. Nf3 {[%emt 0:00:17]} Nc6 {[%emt 0:00:08]} 3. c3 {[%emt 0:01:33]} d5 {[%emt 0:02:34]} 4. exd5 {[%emt 0:00:26]} Qxd5 {[%emt 0:00:12]} 5. d4 {[%emt 0:00:58]} e6 {[%emt 0:01:26]} 6. Be3 {[%emt 0:05:48]} cxd4 {[%emt 0:11:54]} 7. Nxd4 {[%emt 0:00:44]} a6 {[%emt 0:02:20]} 8. Nxc6 {[%emt 0:02:30]} Qxc6 {[%emt 0:00:28]} 9. Qb3 {[%emt 0:01:35]} Bc5 {[%emt 0:03:07]} 10. Bxc5 {[%emt 0:01:00]} Qxc5 {[%emt 0:00:10]} 11. Nd2 {[%emt 0:00:53]} Nf6 {[%emt 0:00:40]} 12. Qc4 {[%emt 0:00:51]} Qb6 {[%emt 0:07:54]} 13. Nb3 {[%emt 0:01:27]} O-O {[%emt 0:03:57]} 14. Qd4 {[%emt 0:01:22]} Qxd4 {[%emt 0:05:52]} 15. Nxd4 {[%emt 0:00:13]} e5 {[%emt 0:00:08]} 16. Nf3 {[%emt 0:01:15]} Re8 {[%emt 0:05:04]} 17. Bc4 {[%emt 0:01:19]} h6 {[%emt 0:04:27]} 18. Rd1 {[%emt 0:01:38]} Bg4 {[%emt 0:01:10]} 19. Be2 {[%emt 0:00:31]} Bxf3 {[%emt 0:04:52]} 20. Bxf3 {[%emt 0:00:30]} e4 {[%emt 0:00:30]} 21. Be2 {[%emt 0:00:12]} e3 {[%emt 0:00:44]} 22. f3 {[%emt 0:01:09]} Nh5 {[%emt 0:05:26]} 23. g3 {[%emt 0:00:27]} f5 {[%emt 0:00:57]} 24. f4 {[%emt 0:00:08]} Nf6 {[%emt 0:00:12]} 25. Bf3 {[%emt 0:00:44]} Re7 {[%emt 0:04:49]} 26. Ke2 {[%emt 0:00:24]} Rae8 {[%emt 0:01:52]} 27. h4 {[%emt 0:00:10]} b5 {[%emt 0:05:30]} 28. Rd6 {[%emt 0:01:01]} b4 {[%emt 0:04:37]} 29. c4 {[%emt 0:02:25]} Ne4 {[%emt 0:03:42]} 30. Bxe4 {[%emt 0:00:12]} Rxe4 {[%emt 0:00:07]} 31. b3 {[%emt 0:00:08]} Ra8 {[%emt 0:00:45]} 32. Rhd1 {[%emt 0:00:15]} a5 {[%emt 0:04:52]} 33. Rd8+ {[%emt 0:00:27]} Rxd8 {[%emt 0:00:10]} 34. Rxd8+ {[%emt 0:00:04]} Kf7 {[%emt 0:00:17]} 35. Rd5 {[%emt 0:00:15]} a4 {[%emt 0:00:16]} 36. Rxf5+ {[%emt 0:00:43]} Kg6 {[%emt 0:00:26]} 37. Rb5 {[%emt 0:01:54]} axb3 {[%emt 0:00:19]} 38. axb3 {[%emt 0:00:05]} Rd4 {[%emt 0:00:27]} 39. Kxe3 {[%emt 0:00:10]} Rd1 {[%emt 0:00:13]} 40. Rxb4 {[%emt 0:00:24]} Kf5 {[%emt 0:00:43]} 41. Rb7 {[%emt 0:30:25]} g6 {[%emt 0:30:22]} 42. c5 {[%emt 0:00:24]} Kg4 {[%emt 0:02:08]} 43. Rg7 {[%emt 0:00:15]} Kh5 {[%emt 0:01:30]} 44. c6 {[%emt 0:01:00]} Rd8 {[%emt 0:01:09]} 45. c7 {[%emt 0:00:31]} Re8+ {[%emt 0:00:38]} 46. Kd4 {[%emt 0:00:22]} g5 {[%emt 0:00:18]} 47. hxg5 {[%emt 0:00:27]} hxg5 {[%emt 0:01:21]} 48. Rxg5+ {[%emt 0:00:17]} Kh6 {[%emt 0:00:08]} 49. Rc5 {[%emt 0:00:11]} Rc8 {[%emt 0:00:09]} 50. Kd5 {[%emt 0:00:05]} 1-0

[Event "Slovakian-ch Youth 2022"]
[Site "Lubovna"]
[Date "2022.05.22"]
[Round "2.4"]
[White "Oruzinsky, Juraj"]
[Black "Polomsky, Tomas"]
[Result "0-1"]
[ECO "B43"]
[WhiteElo "1656"]
[BlackElo "1467"]
[Annotator "NA COMBH"]
[PlyCount "88"]
[EventDate "2022.05.22"]
[EventCountry "SVK"]
[SourceTitle "playchess.com"]
[Source "ChessBase"]
[SourceQuality "1"]
[TimeControl "40/5400+30:1800+30"]

1. e4 c5 {[%emt 0:00:19]} 2. Nf3 {[%emt 0:00:12]} e6 {[%emt 0:00:34]} 3. d4 cxd4 {[%emt 0:00:30]} 4. Nxd4 {[%emt 0:00:23]} a6 {[%emt 0:01:10]} 5. Nc3 {[%emt 0:00:19]} b5 {[%emt 0:00:58]} 6. Be3 {[%emt 0:01:43]} Qc7 7. Bd3 {[%emt 0:01:55]} Nf6 {[%emt 0:05:28]} 8. O-O {[%emt 0:00:54]} Bb7 {[%emt 0:01:59]} 9. a3 d5 {[%emt 0:07:45]} 10. exd5 {[%emt 0:08:49]} Nxd5 {[%emt 0:01:46]} 11. Nxd5 {[%emt 0:00:34]} Bxd5 {[%emt 0:00:39]} 12. Qg4 Nd7 13. Bf4 {[%emt 0:08:45]} Qb6 {[%emt 0:23:54]} 14. c3 {[%emt 0:01:26]} Nf6 {[%emt 0:03:42]} 15. Qe2 {[%emt 0:01:35]} Bd6 {[%emt 0:03:43]} 16. Bxd6 {[%emt 0:03:26]} Qxd6 {[%emt 0:00:02]} 17. Nf5 {[%emt 0:02:06]} Qc6 18. f3 {[%emt 0:12:35]} Qb6+ {[%emt 0:09:45]} 19. Kh1 {[%emt 0:00:33]} O-O 20. Qe3 {[%emt 0:04:13]} Qxe3 {[%emt 0:03:59]} 21. Nxe3 {[%emt 0:01:05]} Rfd8 22. Bc2 Rd7 {[%emt 0:07:02]} 23. Rfd1 {[%emt 0:01:23]} Rad8 {[%emt 0:01:07]} 24. Kg1 Kf8 25. Kf2 {[%emt 0:04:35]} Ke7 {[%emt 0:02:51]} 26. Nxd5+ {[%emt 0:00:31]} Nxd5 {[%emt 0:02:38]} 27. g3 {[%emt 0:01:14]} Nb6 {[%emt 0:02:40]} 28. Rxd7+ {[%emt 0:06:08]} Rxd7 {[%emt 0:01:24]} 29. Rd1 {[%emt 0:00:20]} Rxd1 {[%emt 0:02:41]} 30. Bxd1 {[%emt 0:00:05]} Nc4 {[%emt 0:00:21]} 31. b3 {[%emt 0:01:04]} Nxa3 {[%emt 0:01:30]} 32. Ke3 {[%emt 0:01:06]} Kd6 {[%emt 0:02:37]} 33. Be2 {[%emt 0:02:14]} a5 {[%emt 0:02:56]} 34. Kd4 {[%emt 0:01:21]} e5+ {[%emt 0:02:25]} 35. Ke4 {[%emt 0:01:44]} Nb1 {[%emt 0:01:51]} 36. Kd3 {[%emt 0:01:11]} Kd5 {[%emt 0:01:40]} 37. c4+ {[%emt 0:02:09]} Kc5 {[%emt 0:02:38]} 38. Kc2 {[%emt 0:02:34]} Na3+ {[%emt 0:00:34]} 39. Kb2 {[%emt 0:00:50]} b4 {[%emt 0:00:32]} 40. Bd3 {[%emt 0:00:49]} g6 {[%emt 0:00:45]} 41. g4 Kd4 {[%emt 0:32:08]} 42. Be4 {[%emt 0:30:45]} a4 43. g5 {[%emt 0:01:02]} axb3 {[%emt 0:01:29]} 44. Bd5 {[%emt 0:00:44]} Nxc4+ {[%emt 0:00:18]} 0-1

[Event "Slovakian-ch Youth 2022"]
[Site "Lubovna"]
[Date "2022.05.22"]
[Round "2.5"]
[White "Stevik, Patrik"]
[Black "Beres, Tomas"]
[Result "1/2-1/2"]
[ECO "E05"]
[WhiteElo "2249"]
[BlackElo "2059"]
[Annotator "TA"]
[PlyCount "80"]
[EventDate "2022.05.22"]
[EventCountry "SVK"]
[SourceTitle "playchess.com"]
[Source "ChessBase"]
[SourceQuality "1"]
[TimeControl "40/5400+30:1800+30"]

{[%evp 14,80,35,23,16,-16,19,9,32,17,26,19,29,12,7,2,10,2,11,0,0,0,19,2,4,9,24,0,0,0,8,-29,-30,-55,-52,-69,-79,-63,-71,-192,-179,-276,-177,-159,-162,-245,-243,-240,-172,-129,-120,-137,-9,-25,-1,-108,-15,-58,-36,-55,-37,-48,-19,-17,-16,-44,-37,-35,-70]} 1. Nf3 {[%emt 0:01:38]} d5 {[%emt 0:00:24]} 2. d4 {[%emt 0:00:27]} Nf6 {[%emt 0:00:09]} 3. c4 {[%emt 0:00:08]} e6 {[%emt 0:00:24]} 4. g3 {[%emt 0:00:40]} Be7 {[%emt 0:00:12]} 5. Bg2 {[%emt 0:00:08]} O-O {[%emt 0:00:39]} 6. O-O {[%emt 0:00:17]} dxc4 {[%emt 0:00:36]} 7. Ne5 {[%emt 0:06:03]} c5 {[%emt 0:04:21]} 8. dxc5 {[%emt 0:00:50]} Qc7 {[%emt 0:00:20] [#] E05: Open Catalan: 5 Nf3 Be7.} 9. c6 $1 {[%emt 0:04:26]} bxc6 {[%emt 0:24:06]} (9... Qxe5 10. cxb7 Bxb7 11. Bxb7 $16) (9... Nxc6 10. Nxc6) 10. Nxc4 {[%emt 0:01:31] [#]} Nbd7 $146 {[%emt 0:01:08] The position is equal.} ({Predecessor:} 10... e5 11. b3 Be6 12. Bb2 Nbd7 13. Qc2 Rfc8 14. Nbd2 Nd5 15. e4 Nb4 16. Qc3 f6 {½-½ (48) Stadler,A (2038)-Laubert,J (2123) Bayerisch Eisenstein 2012}) 11. Bd2 {[%emt 0:02:57]} Ba6 {[%emt 0:17:05]} 12. Qc2 {[%emt 0:05:07]} Rac8 {[%emt 0:01:10]} 13. Rc1 {[%emt 0:10:32]} Nd5 {[%emt 0:04:58]} 14. Ba5 {[%emt 0:06:12]} N7b6 {[%emt 0:04:55]} 15. Nbd2 {[%emt 0:02:55]} Qb8 {[%emt 0:02:48]} 16. e4 {[%emt 0:03:29]} Nxc4 {[%emt 0:06:35]} 17. Nxc4 {[%emt 0:00:40]} Nb6 {[%emt 0:01:29]} 18. Ne3 {[%emt 0:01:55]} Rfd8 {[%emt 0:02:56]} 19. Rd1 {[%emt 0:01:47]} c5 {[%emt 0:02:13]} 20. h4 {[%emt 0:02:11]} Rxd1+ {[%emt 0:02:29]} 21. Rxd1 {[%emt 0:02:38]} Bf6 {[%emt 0:00:10]} 22. Ng4 {[%emt 0:01:27]} Bd4 {[%emt 0:00:36] aiming for ...Nc4.} 23. b3 {[%emt 0:03:08] Against Nc4} Qxg3 {[%emt 0:12:20]} 24. Rxd4 {[%emt 0:11:26]} Qxg4 {[%emt 0:00:05]} 25. Rd6 {[%emt 0:05:44]} h6 {[%emt 0:04:00]} ({Don't play} 25... Qxh4 26. Bxb6 Qe7 27. e5 (27. Bc7 Bb7 $17) 27... axb6 28. Rxb6 $11) 26. Bxb6 {[%emt 0:04:30]} (26. Qd1 $17 Be2 27. f3 Bxd1 28. fxg4 Bxg4 29. Bf1) 26... axb6 $19 {[%emt 0:00:05]} 27. Rxb6 {[%emt 0:00:08]} (27. Qd2 $142) 27... Be2 {[%emt 0:00:34] ( -> ...Bf3)} 28. Qc3 {[%emt 0:00:41] Against Bf3} Qxh4 {[%emt 0:02:32] Strongly threatening ...Rd8.} 29. Qe3 {[%emt 0:00:19]} (29. Rd6 $142) 29... Qd8 {[%emt 0:02:27]} 30. Rb7 {[%emt 0:04:03]} Ba6 {[%emt 0:00:26]} 31. Ra7 {[%emt 0:00:01]} Qb6 {[%emt 0:00:31]} 32. Rd7 {[%emt 0:00:01]} Qc6 {[%emt 0:01:30]} ({Black should play} 32... Qb5 $17 33. Ra7 c4 34. bxc4 Qb1+ 35. Kh2 Bxc4) 33. Qd2 $11 {[%emt 0:01:18]} Bb7 {[%emt 0:00:55]} 34. Rd3 {[%emt 0:02:05]} (34. a4 $11 {keeps the balance.}) 34... e5 {[%emt 0:01:32]} ({Better is} 34... Qe8 $17) 35. Rd6 {[%emt 0:00:47]} Qc7 {[%emt 0:00:15]} 36. Bh3 {[%emt 0:01:36]} Rf8 {[%emt 0:00:58] ...c4 is the strong threat.} (36... Bxe4 $2 37. Bxc8 c4 {[#]} 38. bxc4 $1 $18) 37. Bf5 {[%emt 0:02:45]} Bc8 {[%emt 0:00:30]} 38. Qd5 {[%emt 0:00:54]} Qe7 {[%emt 0:00:29][%cal Oc5c4] White must now prevent ...c4!} 39. Bxc8 $1 {[%emt 0:03:07]} Rxc8 {[%emt 0:00:06]} 40. Rd7 $1 {[%emt 0:00:11]} Qg5+ {[%emt 0:00:28] White happily takes the draw.  Weighted Error Value: White=0.21 (precise) /Black=0.25 (precise)} 1/2-1/2

[Event "Slovakian-ch Youth 2022"]
[Site "Lubovna"]
[Date "2022.05.22"]
[Round "2.5"]
[White "Paholok, Adam"]
[Black "Durana, Jonas"]
[Result "0-1"]
[ECO "B53"]
[WhiteElo "1449"]
[BlackElo "1644"]
[Annotator "NA COMBH"]
[PlyCount "70"]
[EventDate "2022.05.22"]
[EventCountry "SVK"]
[SourceTitle "playchess.com"]
[Source "ChessBase"]
[SourceQuality "1"]
[TimeControl "40/5400+30:1800+30"]

1. e4 {[%emt 0:00:03]} c5 {[%emt 0:00:02]} 2. Nf3 {[%emt 0:00:06]} d6 {[%emt 0:00:11]} 3. d4 {[%emt 0:00:15]} cxd4 {[%emt 0:00:03]} 4. Qxd4 {[%emt 0:00:07]} Nc6 {[%emt 0:00:45]} 5. Bb5 {[%emt 0:00:08]} Bd7 {[%emt 0:00:50]} 6. Bxc6 {[%emt 0:00:29]} Bxc6 {[%emt 0:00:07]} 7. Nc3 {[%emt 0:00:37]} Nf6 {[%emt 0:02:29]} 8. Bg5 {[%emt 0:01:56]} e5 {[%emt 0:02:46]} 9. Qd3 {[%emt 0:01:26]} h6 {[%emt 0:05:12]} 10. Be3 {[%emt 0:05:17]} Be7 {[%emt 0:00:26]} 11. O-O-O {[%emt 0:01:06]} a6 {[%emt 0:03:11]} 12. Rhg1 {[%emt 0:06:57]} b5 {[%emt 0:02:25]} 13. a3 {[%emt 0:01:33]} Rc8 {[%emt 0:02:15]} 14. g4 {[%emt 0:02:01]} Qc7 {[%emt 0:02:41]} 15. g5 {[%emt 0:02:28]} hxg5 {[%emt 0:02:51]} 16. Bxg5 {[%emt 0:02:04]} Qa5 {[%emt 0:19:40]} 17. Bd2 {[%emt 0:09:44]} b4 {[%emt 0:01:38]} 18. Nd5 {[%emt 0:06:49]} Bxd5 {[%emt 0:02:09]} 19. Bxb4 {[%emt 0:00:29]} Qc7 {[%emt 0:00:46]} 20. exd5 {[%emt 0:01:41]} e4 {[%emt 0:00:35]} 21. Qb3 {[%emt 0:01:42]} exf3 {[%emt 0:00:52]} 22. Rd3 {[%emt 0:00:30]} Rxh2 {[%emt 0:06:45]} 23. Re1 {[%emt 0:00:52]} Rxf2 {[%emt 0:02:04]} 24. Rc3 {[%emt 0:00:36]} Qd7 {[%emt 0:03:05]} 25. Rxc8+ {[%emt 0:05:59]} Qxc8 {[%emt 0:00:09]} 26. Bxd6 {[%emt 0:00:20]} Re2 {[%emt 0:01:11]} 27. Rxe2 {[%emt 0:01:26]} fxe2 {[%emt 0:00:06]} 28. Qe3 {[%emt 0:00:20]} Qd7 {[%emt 0:00:57]} 29. Bxe7 {[%emt 0:01:59]} Qxe7 {[%emt 0:00:16]} 30. Qxe7+ {[%emt 0:00:07]} Kxe7 {[%emt 0:00:04]} 31. Kd2 {[%emt 0:00:06]} Kd6 {[%emt 0:00:04]} 32. Kxe2 {[%emt 0:00:17]} Kxd5 {[%emt 0:00:04]} 33. Ke3 {[%emt 0:00:21]} Ng4+ {[%emt 0:00:08]} 34. Kf4 {[%emt 0:00:18]} Ne5 {[%emt 0:00:07]} 35. Ke3 {[%emt 0:01:02]} Nc4+ {[%emt 0:00:07]} 0-1

[Event "Slovakian-ch Youth 2022"]
[Site "Lubovna"]
[Date "2022.05.22"]
[Round "2.6"]
[White "Chlpek, Daniel"]
[Black "Brnusak, Tomas"]
[Result "1/2-1/2"]
[ECO "A04"]
[WhiteElo "2030"]
[BlackElo "2212"]
[Annotator "TA"]
[PlyCount "133"]
[EventDate "2022.05.22"]
[EventCountry "SVK"]
[SourceTitle "playchess.com"]
[Source "ChessBase"]
[SourceQuality "1"]
[TimeControl "40/5400+30:1800+30"]

{[%evp 9,133,25,58,36,85,41,57,58,95,90,83,33,41,2,15,10,40,12,22,16,18,-40,77,65,121,112,130,125,160,153,153,180,171,144,145,93,104,98,100,96,97,94,86,85,95,86,86,89,127,71,88,74,139,35,87,71,78,86,89,77,100,0,0,0,0,0,0,0,0,0,0,0,0,-14,0,0,0,0,0,0,0,-64,-70,-81,-78,-102,-97,-76,0,0,0,-33,0,-33,0,0,0,-8,0,-33,-33,-107,-266,-292,0,0,0,0,0,0,0,0,0,0,-5,-19,-19,-19,-19,-33,-33,-33,0,0,0,0]} 1. Nf3 {[%emt 0:00:04]} f5 {[%emt 0:00:11]} 2. d3 {[%emt 0:00:04]} Nf6 {[%emt 0:00:31]} 3. e4 {[%emt 0:00:04]} d6 {[%emt 0:00:32]} 4. exf5 {[%emt 0:00:10]} Bxf5 {[%emt 0:00:13]} 5. d4 {[%emt 0:00:04]} g6 {[%emt 0:02:03][%cal Oe7e5]} 6. Bd3 {[%emt 0:03:57] A04: Unusual lines after 1 Nf3 and King's Indian Attack.} Bg4 {[%emt 0:04:40]} (6... Qd7 $14) 7. h3 {[%emt 0:06:18]} Bxf3 {[%emt 0:00:33]} 8. Qxf3 {[%emt 0:00:08] White is slightly better.} ({Reject} 8. gxf3 Bg7 $11) 8... c6 {[%emt 0:00:14] [#]} 9. O-O $146 {[%emt 0:08:01]} ({Predecessor:} 9. Qg3 Qb6 10. c3 Nbd7 11. Nd2 O-O-O 12. a4 Qc7 13. Nf3 e5 14. Ng5 exd4 15. O-O {½-½ (24) Verhoef,H (1922)-Beier,T (1743) Bockenem 2004}) 9... Bg7 {[%emt 0:03:15]} 10. Bc4 {[%emt 0:02:51]} (10. Qe2 $16) 10... d5 $14 {[%emt 0:01:20]} 11. Bd3 {[%emt 0:00:21]} O-O {[%emt 0:00:19][%cal Oe7e5]} 12. Qe3 {[%emt 0:02:33]} Nbd7 {[%emt 0:02:54]} 13. Nd2 $36 {[%emt 0:01:10][%mdl 2048] White is more active.} Nh5 {[%emt 0:09:15]} 14. Qe6+ {[%emt 0:09:37]} Kh8 {[%emt 0:01:12]} 15. Nf3 {[%emt 0:01:59] [#]} (15. Nb3 $1 $11) 15... Rf6 {[%emt 0:10:03]} (15... Rxf3 $1 $15 {stays ahead.} 16. gxf3 Bxd4) 16. Qe2 {[%emt 0:00:23] White is more active.} Nf8 {[%emt 0:19:49]} ({Black should try} 16... Qc7 $14) 17. Bg5 $16 {[%emt 0:00:42]} Re6 {[%emt 0:00:05]} 18. Qd2 {[%emt 0:01:36]} Qb6 {[%emt 0:06:31]} 19. c3 {[%emt 0:01:37]} c5 {[%emt 0:05:46]} 20. dxc5 {[%emt 0:00:38]} Qxc5 {[%emt 0:00:07]} 21. Be3 {[%emt 0:03:37]} Qc7 {[%emt 0:01:54]} 22. Nd4 {[%emt 0:01:14]} (22. Be2 $142) 22... Rf6 {[%emt 0:00:42]} 23. f4 {[%emt 0:10:34]} Ng3 {[%emt 0:07:08]} 24. Rf3 {[%emt 0:01:57]} Ne4 {[%emt 0:01:24]} 25. Bxe4 {[%emt 0:02:04]} dxe4 {[%emt 0:00:05]} 26. Rf2 {[%emt 0:00:50]} Rd8 {[%emt 0:03:22]} 27. Qc2 {[%emt 0:00:52]} e5 {[%emt 0:01:13]} 28. fxe5 {[%emt 0:00:14]} Rxf2 {[%emt 0:01:32]} 29. Qxf2 {[%emt 0:02:29]} ({Better is} 29. Bxf2 Qxe5 30. Re1) 29... Qxe5 {[%emt 0:00:06]} 30. Rf1 {[%emt 0:01:08]} (30. Qf7 {looks sharper.} Rd7 31. Qc4 a6 32. Nb3) 30... Nd7 {[%emt 0:07:23]} (30... a6 $142) 31. Qf4 {[%emt 0:02:04]} (31. Qf7 $1 $16 {And now Ne6 would win.} Nc5 32. b4) 31... Qxf4 {[%emt 0:04:44]} (31... Nc5 $14) 32. Rxf4 {[%emt 0:00:45] Strongly threatening Ne6.} Nc5 {[%emt 0:00:05] Inhibits Ne6.} 33. Rf7 {[%emt 0:00:47]} Be5 {[%emt 0:02:02] Against Rc7} 34. Re7 $1 {[%emt 0:09:37]} Bd6 {[%emt 0:01:07] [#]} 35. Rf7 {[%emt 0:00:12]} (35. Ne6 $1 $16 {Threatening mate with Bd4+.} Bxe7 36. Nxd8) 35... Kg8 {[%emt 0:00:15]} 36. Rf2 {[%emt 0:00:43]} a6 {[%emt 0:01:12]} 37. Rd2 {[%emt 0:03:18]} Nd3 {[%emt 0:01:00]} 38. Ne6 {[%emt 0:04:21]} Re8 {[%emt 0:01:06]} 39. Ng5 {[%emt 0:00:36][%cal Og5e4]} Bf4 {[%emt 0:01:09]} 40. Bxf4 {[%emt 0:00:30]} Nxf4 $11 {[%emt 0:00:06][%mdl 4096] Endgame KRN-KRN} 41. Rf2 {[%emt 0:33:17]} (41. Rd7 $5 {[%cal Rg5h7]}) 41... Nd3 {[%emt 0:10:10]} 42. Rd2 {[%emt 0:00:00][%cal Og5e4]} Nc5 {[%emt 0:00:12] Hoping for ...h6.} 43. Rd5 {[%emt 0:00:00]} b6 {[%emt 0:06:03] Threatens to win with ...h6.} 44. Rd4 {[%emt 0:00:00]} Re5 {[%emt 0:06:40]} 45. b4 {[%emt 0:00:00]} (45. h4 $11) 45... Rxg5 $15 {[%emt 0:00:04]} 46. bxc5 {[%emt 0:00:00]} Rxc5 {[%emt 0:00:04]} 47. Rxe4 {[%emt 0:00:00]} Rxc3 {[%emt 0:00:08] KR-KR} 48. Re6 {[%emt 0:00:00] [#]} Ra3 {[%emt 0:00:07]} ({Black should play} 48... Rc1+ $1 $17 49. Kf2 Rb1) 49. Rxb6 $11 {[%emt 0:00:00]} Rxa2 {[%emt 0:00:05]} 50. Rb7 {[%emt 0:00:00]} a5 {[%emt 0:01:01][%cal Ba6a5,Ba5a4,Ba4a3,Ba3a2][%mdl 32]} 51. Ra7 {[%emt 0:00:00]} a4 {[%emt 0:00:04]} 52. Kh2 {[%emt 0:00:00]} a3 {[%emt 0:00:22]} 53. Kg3 {[%emt 0:00:00]} Ra1 {[%emt 0:00:25] aiming for ...a2.} 54. Kg4 {[%emt 0:00:00]} h6 {[%emt 0:00:04]} 55. h4 {[%emt 0:00:00]} (55. Kf3 $15 a2 56. Kg4) 55... a2 $17 {[%emt 0:00:10]} 56. Kg3 {[%emt 0:00:00] [#]} h5 $2 {[%emt 0:00:42]} (56... Kf8 $1 $19 {...Ke8 is the strong threat.} 57. Kf2 Ke8) 57. Kh2 {[%emt 0:00:00]} Kf8 {[%emt 0:00:05]} 58. Kg3 {[%emt 0:00:00]} Ke8 {[%emt 0:01:54]} 59. Ra8+ {[%emt 0:00:00]} Kd7 {[%emt 0:00:06]} 60. Ra7+ {[%emt 0:00:00]} Kc6 {[%emt 0:00:34]} 61. Ra6+ {[%emt 0:00:00]} Kb5 {[%emt 0:00:16]} 62. Ra8 {[%emt 0:00:00]} Kc4 {[%emt 0:02:09]} 63. Rc8+ {[%emt 0:00:00]} Kd3 {[%emt 0:00:12]} 64. Rd8+ {[%emt 0:00:00]} Ke2 {[%emt 0:00:09] ( -> ...Re1)} 65. Ra8 {[%emt 0:00:00]} Kf1 {[%emt 0:00:29]} 66. Ra7 {[%emt 0:00:00]} Kg1 {[%emt 0:00:41]} ({Wrong is} 66... Ke2 $2 67. Re7+ Kd3 68. Ra7 $17) (66... Ke1 $5) 67. Ra8 {[%emt 0:00:00] What a bad dream for Black.  Weighted Error Value: White=0.18 (very precise) /Black=0.22 (precise)} 1/2-1/2

[Event "Slovakian-ch Youth 2022"]
[Site "Lubovna"]
[Date "2022.05.22"]
[Round "2.6"]
[White "Carnecky, Viliam"]
[Black "Benci, Jozef"]
[Result "0-1"]
[ECO "B51"]
[WhiteElo "1380"]
[BlackElo "1873"]
[Annotator "NA RC COMBH"]
[PlyCount "74"]
[EventDate "2022.05.22"]
[EventCountry "SVK"]
[SourceTitle "playchess.com"]
[Source "ChessBase"]
[SourceQuality "1"]
[TimeControl "40/5400+30:1800+30"]

1. e4 {[%emt 0:00:04]} c5 {[%emt 0:00:07]} 2. Nf3 {[%emt 0:00:18]} d6 {[%emt 0:00:06]} 3. Bb5+ {[%emt 0:00:30]} Nd7 {[%emt 0:00:49]} 4. c3 {[%emt 0:01:08]} Ngf6 {[%emt 0:00:52]} 5. e5 {[%emt 0:08:51]} dxe5 {[%emt 0:05:21]} 6. Nxe5 {[%emt 0:02:12]} Qc7 {[%emt 0:08:19]} 7. d4 {[%emt 0:12:46]} a6 {[%emt 0:08:40]} 8. Bxd7+ {[%emt 0:09:36]} Bxd7 9. Bf4 Qb6 {[%emt 0:15:07]} 10. b3 {[%emt 0:10:20]} e6 {[%emt 0:06:46]} 11. O-O {[%emt 0:01:56]} Be7 {[%emt 0:07:00]} 12. Re1 {[%emt 0:01:35]} Bc6 {[%emt 0:06:14]} 13. Nc4 {[%emt 0:05:50]} Qd8 {[%emt 0:03:28]} 14. dxc5 {[%emt 0:03:00]} Bxc5 {[%emt 0:05:11]} 15. Bd6 {[%emt 0:01:46]} Ba7 {[%emt 0:07:58]} 16. Nba3 {[%emt 0:05:17]} Ne4 {[%emt 0:03:52]} 17. Bg3 {[%emt 0:05:13]} Nxg3 {[%emt 0:09:17]} 18. hxg3 {[%emt 0:00:32]} Qf6 {[%emt 0:04:54]} 19. Qc2 {[%emt 0:02:04]} O-O {[%emt 0:00:29]} 20. Ne5 {[%emt 0:02:33]} Rac8 {[%emt 0:01:24]} 21. Nxc6 {[%emt 0:01:29]} Rxc6 {[%emt 0:00:14]} 22. c4 {[%emt 0:03:12]} Bc5 {[%emt 0:01:28]} 23. Rab1 {[%emt 0:03:53]} Bxa3 {[%emt 0:00:37]} 24. b4 {[%emt 0:00:41]} Rb6 {[%emt 0:01:28]} 25. Rb3 {[%emt 0:01:26]} Rxb4 {[%emt 0:02:09]} 26. Rxa3 {[%emt 0:00:54]} Rb2 {[%emt 0:00:06]} 27. Qe4 {[%emt 0:00:50]} Qxf2+ {[%emt 0:00:16]} 28. Kh2 {[%emt 0:00:00]} Rd8 {[%emt 0:00:55]} 29. Rg1 {[%emt 0:00:26]} Qf6 {[%emt 0:00:33]} 30. Rf3 {[%emt 0:00:42]} Qh6+ {[%emt 0:00:16]} 31. Qh4 {[%emt 0:00:06]} Qxh4+ {[%emt 0:00:20]} 32. gxh4 {[%emt 0:00:06]} Rdd2 {[%emt 0:00:35]} 33. Rb3 {[%emt 0:00:19]} Rxb3 {[%emt 0:00:28]} 34. axb3 {[%emt 0:00:05]} f6 {[%emt 0:00:34]} 35. Rb1 {[%emt 0:00:11]} Kf7 {[%emt 0:00:11]} 36. b4 {[%emt 0:00:09]} Rd4 {[%emt 0:00:25]} 37. c5 {[%emt 0:00:13]} Rxh4+ {[%emt 0:00:11]} 0-1